fUSD/lending_fUSD_20251201
["ID","MTS","AMOUNT","RATE_DAILY","PERIOD"]
[395231724,1764557442676,-150.0,0.00015315,2]
[395231725,1764557442686,-150.0,0.00015319,2]
[395231726,1764557442696,-150.0,0.0001532,2]
[395231728,1764557442706,-152.44390529,0.00015322,2]
[395231730,1764557442715,-214.27357495,0.00015322,2]
[395231731,1764557442725,-152.44390529,0.00015339,2]
[395231732,1764557442735,-214.27357495,0.00015339,2]
[395231733,1764557442744,-500.0,0.00015341,2]
[395231735,1764557442754,-1600.0,0.00015341,2]
[395231737,1764557442763,-150.0,0.00015342,2]
[395231739,1764557442772,-600.0,0.00015342,2]
[395231741,1764557442782,-150.0,0.00015348,2]
[395231743,1764557442791,-150.0,0.00015349,2]
[395231745,1764557442800,-200.0,0.00015351,2]
[395231748,1764557442810,-200.0,0.00015351,2]
[395231750,1764557442819,-500.0,0.00015351,2]
[395231752,1764557442828,-150.0,0.00015353,2]
[395231754,1764557442838,-152.44390529,0.00015356,2]
[395231757,1764557442848,-214.27357495,0.00015356,2]
[395231759,1764557442857,-150.0,0.00015369,2]
[395231761,1764557442866,-150.0,0.0001537,2]
[395231762,1764557442875,-152.44390529,0.00015373,2]
[395231763,1764557442885,-214.27357495,0.00015373,2]
[395231764,1764557442895,-426.46665,0.00015374,2]
[395231765,1764557442905,-150.0,0.0001538,2]
[395231766,1764557442914,-150.0,0.00015386,2]
[395231767,1764557442923,-152.44390529,0.00015391,2]
[395231768,1764557442932,-214.27357495,0.00015391,2]
[395231769,1764557442942,-150.0,0.00015397,2]
[395231770,1764557442951,-152.44390529,0.00015408,2]
[395231771,1764557442960,-214.27357495,0.00015408,2]
[395231772,1764557442970,-150.0,0.00015409,2]
[395231773,1764557442980,-150.0,0.00015409,2]
[395231774,1764557442989,-1227.91652633,0.00015411,2]
[395231775,1764557442999,-4205.89366882,0.00015411,2]
[395231776,1764557443009,-2229.05280589,0.00015411,2]
[395231777,1764557443018,-150.0,0.00015411,2]
[395231778,1764557443027,-150.0,0.00015418,2]
[395231779,1764557443036,-150.0,0.00015425,2]
[395231780,1764557443046,-152.44390529,0.00015425,2]
[395231781,1764557443055,-214.27357495,0.00015425,2]
[395231782,1764557443066,-1452.95,0.00015431,2]
[395231783,1764557443076,-152.44390529,0.00015442,2]
[395231784,1764557443086,-214.27357495,0.00015442,2]
[395231785,1764557443095,-150.0,0.00015442,2]
[395231786,1764557443105,-150.0,0.00015449,2]
[395231787,1764557443115,-150.0,0.00015451,2]
[395231788,1764557443126,-150.0,0.00015452,2]
[395231789,1764557443135,-152.44390529,0.00015459,2]
[395231790,1764557443144,-214.27357495,0.00015459,2]
[395231791,1764557443155,-151.0,0.00015465,2]
[395231792,1764557443165,-1500.0,0.00015468,2]
[395231793,1764557443174,-1195.52666433,0.00015468,2]
[395231794,1764557443183,-1002.96420978,0.00015468,2]
[395231795,1764557443193,-458.41629171,0.00015468,2]
[395231796,1764557443202,-463.74871303,0.00015468,2]
[395231797,1764557443211,-150.0,0.0001547,2]
[395231798,1764557443221,-150.0,0.00015473,2]
[395231799,1764557443230,-152.44390529,0.00015476,2]
[395231800,1764557443239,-214.27357495,0.00015476,2]
[395231801,1764557443248,-150.0,0.00015476,2]
[395231802,1764557443258,-150.0,0.00015479,2]
[395231803,1764557443267,-150.0,0.00015484,2]
[395231804,1764557443276,-484.48020322,0.00015489,2]
[395231805,1764557443285,-152.44390529,0.00015494,2]
[395231806,1764557443294,-214.27357495,0.00015494,2]
[395231807,1764557443303,-150.0,0.00015504,2]
[395231808,1764557443313,-150.0,0.00015507,2]
[395231809,1764557443322,-152.44390529,0.00015511,2]
[395231810,1764557443331,-214.27357495,0.00015511,2]
[395231811,1764557443339,-150.0,0.00015516,2]
[395231812,1764557443348,-152.44390529,0.00015528,2]
[395231813,1764557443357,-214.27357495,0.00015528,2]
[395231814,1764557443366,-150.0,0.0001553,2]
[395231815,1764557443375,-150.0,0.0001553,2]
[395231816,1764557443384,-150.0,0.0001553,2]
[395231817,1764557443394,-150.0,0.00015534,2]
[395231818,1764557443404,-150.0,0.00015535,2]
[395231819,1764557443414,-152.44390529,0.00015545,2]
[395231820,1764557443423,-214.27357495,0.00015545,2]
[395231821,1764557443432,-150.0,0.00015549,2]
[395231822,1764557443441,-173.83022775,0.0001556,2]
[395231823,1764557443450,-150.0,0.00015562,2]
[395231824,1764557443459,-152.44390529,0.00015562,2]
[395231825,1764557443468,-214.27357495,0.00015562,2]
[395231826,1764557443479,-150.0,0.00015566,2]
[395231827,1764557443489,-152.44390529,0.00015579,2]
[395231829,1764557443499,-214.27357495,0.00015579,2]
[395231831,1764557443508,-150.0,0.00015582,2]
[395231832,1764557443518,-798.51664652,0.00015587,2]
[395231833,1764557443529,-43306.12467754,0.00015589,2]
[395231834,1764557443539,-150.0,0.00015589,2]
[395231835,1764557443548,-150.0,0.00015591,2]
[395231836,1764557443558,-152.44390529,0.00015597,2]
[395231837,1764557443569,-214.27357495,0.00015597,2]
[395231838,1764557443578,-150.0,0.00015597,2]
[395231839,1764557443587,-150.0,0.00015611,2]
[395231840,1764557443597,-152.44390529,0.00015614,2]
[395231841,1764557443608,-214.27357495,0.00015614,2]
[395231842,1764557443618,-150.0,0.00015614,2]
[395231843,1764557443628,-150.0,0.00015616,2]
[395231844,1764557443638,-151.0,0.00015617,2]
[395231845,1764557443649,-10636.83273444,0.0001562,2]
[395231846,1764557443658,-150.0,0.00015627,2]
[395231847,1764557443668,-152.44390529,0.00015631,2]
[395231848,1764557443678,-214.27357495,0.00015631,2]
[395231849,1764557443688,-150.0,0.00015644,2]
[395231850,1764557443699,-150.0,0.00015647,2]
[395231851,1764557443709,-152.44390529,0.00015648,2]
[395231852,1764557443719,-214.27357495,0.00015648,2]
[395231853,1764557443728,-150.0,0.00015652,2]
[395231854,1764557443738,-150.0,0.00015652,2]
[395231855,1764557443748,-150.0,0.00015658,2]
[395231856,1764557443758,-152.44390529,0.00015665,2]
[395231857,1764557443767,-214.27357495,0.00015665,2]
[395231858,1764557443776,-150.0,0.00015665,2]
[395231859,1764557443786,-150.0,0.00015671,2]
[395231860,1764557443795,-150.0,0.0001568,2]
[395231861,1764557443804,-152.44390529,0.00015682,2]
[395231862,1764557443814,-214.27357495,0.00015682,2]
[395231863,1764557443823,-150.0,0.00015689,2]
[395231864,1764557443832,-150.0,0.00015692,2]
[395231865,1764557443842,-150.0,0.00015699,2]
[395231866,1764557443851,-152.44390529,0.00015699,2]
[395231867,1764557443860,-214.27357495,0.00015699,2]
[395231868,1764557443870,-1452.95,0.00015705,2]
[395231869,1764557443879,-150.0,0.00015712,2]
[395231870,1764557443888,-150.0,0.00015712,2]
[395231871,1764557443898,-150.0,0.00015712,2]
[395231872,1764557443907,-152.44390529,0.00015717,2]
[395231873,1764557443917,-214.27357495,0.00015717,2]
[395231874,1764557443926,-150.0,0.0001572,2]
[395231875,1764557443935,-150.0,0.00015726,2]
[395231876,1764557443945,-152.44390529,0.00015734,2]
[395231877,1764557443955,-214.27357495,0.00015734,2]
[395231878,1764557443974,-150.0,0.00015745,2]
[395231879,1764557443994,-152.44390529,0.00015751,2]
[395231880,1764557444014,-214.27357495,0.00015751,2]
[395231881,1764557444034,-150.0,0.00015751,2]
[395231882,1764557444047,-150.0,0.00015753,2]
[395231883,1764557444058,-152.44390529,0.00015768,2]
[395231884,1764557444068,-214.27357495,0.00015768,2]
[395231885,1764557444077,-484.4802032,0.00015771,2]
[395231886,1764557444086,-150.0,0.00015773,2]
[395231887,1764557444096,-150.0,0.00015773,2]
[395231888,1764557444105,-150.0,0.00015773,2]
[395231889,1764557444115,-150.0,0.00015778,2]
[395231890,1764557444124,-500.0,0.0001578,2]
[395231891,1764557444133,-150.0,0.00015781,2]
[395231892,1764557444142,-150.0,0.00015782,2]
[395231893,1764557444153,-152.44390529,0.00015785,2]
[395231894,1764557444162,-214.27357495,0.00015785,2]
[395231895,1764557444172,-1123.58810417,0.00015799,2]
[395231896,1764557444181,-152.44390529,0.00015802,2]
[395231897,1764557444191,-214.27357495,0.00015802,2]
[395231898,1764557444200,-150.0,0.00015808,2]
[395231899,1764557444210,-150.0,0.0001581,2]
[395231900,1764557444219,-150.0,0.00015813,2]
[395231901,1764557444228,-152.44390529,0.0001582,2]
[395231902,1764557444238,-214.27357495,0.0001582,2]
[395231903,1764557444247,-500.0,0.00015824,2]
[395231904,1764557444258,-500.0,0.00015824,2]
[395231905,1764557444267,-500.0,0.00015824,2]
[395231906,1764557444277,-500.0,0.00015824,2]
[395231907,1764557444287,-500.0,0.00015824,2]
[395231908,1764557444296,-500.0,0.00015824,2]
[395231909,1764557444305,-500.0,0.00015824,2]
[395231910,1764557444315,-500.0,0.00015824,2]
[395231911,1764557444324,-500.0,0.00015824,2]
[395231912,1764557444334,-500.0,0.00015824,2]
[395231913,1764557444343,-500.0,0.00015824,2]
[395231914,1764557444352,-500.0,0.00015824,2]
[395231915,1764557444361,-269.91867043,0.00015824,2]
[395231916,1764557444370,-150.0,0.00015834,2]
[395231917,1764557444380,-150.0,0.00015836,2]
[395231918,1764557444391,-152.44390529,0.00015837,2]
[395231919,1764557444401,-214.27357495,0.00015837,2]
[395231920,1764557444410,-150.0,0.00015843,2]
[395231921,1764557444419,-150.0,0.00015844,2]
[395231922,1764557444526,-152.44390529,0.00015854,2]
[395231923,1764557444539,-214.27357495,0.00015854,2]
[395231924,1764557444549,-150.0,0.00015854,2]
[395231925,1764557444558,-150.0,0.00015854,2]
[395231926,1764557444567,-150.0,0.00015863,2]
[395231927,1764557444577,-152.44390529,0.00015871,2]
[395231928,1764557444586,-214.27357495,0.00015871,2]
[395231929,1764557444596,-150.0,0.00015874,2]
[395231930,1764557444612,-150.0,0.00015876,2]
[395231931,1764557444624,-152.44390529,0.00015888,2]
[395231932,1764557444634,-214.27357495,0.00015888,2]
[395231933,1764557444642,-150.0,0.0001589,2]
[395231934,1764557444652,-600.0,0.0001589,2]
[395231935,1764557444661,-150.0,0.00015894,2]
[395231936,1764557444670,-150.0,0.00015894,2]
[395231937,1764557444680,-207.4,0.00015898,2]
[395231938,1764557444689,-200.0,0.00015899,2]
[395231939,1764557444699,-200.0,0.00015899,2]
[395231940,1764557444709,-500.0,0.00015899,2]
[395231941,1764557444720,-152.44390529,0.00015905,2]
[395231942,1764557444730,-214.27357495,0.00015905,2]
[395231943,1764557444739,-150.0,0.00015905,2]
[395231944,1764557444748,-150.0,0.00015908,2]
[395231945,1764557444757,-150.0,0.00015918,2]
[395231946,1764557444766,-152.44390529,0.00015923,2]
[395231947,1764557444776,-214.27357495,0.00015923,2]
[395231948,1764557444785,-823.0,0.00015925,2]
[395231949,1764557444795,-150.0,0.00015935,2]
[395231950,1764557444804,-150.0,0.00015936,2]
[395231951,1764557444813,-152.44390529,0.0001594,2]
[395231952,1764557444822,-214.27357495,0.0001594,2]
[395231953,1764557444833,-150.0,0.00015941,2]
[395231954,1764557444842,-150.0,0.00015945,2]
[395231955,1764557444852,-150.0,0.00015955,2]
[395231956,1764557444861,-152.44390529,0.00015957,2]
[395231957,1764557444870,-214.27357495,0.00015957,2]
[395231958,1764557444879,-150.0,0.00015967,2]
[395231959,1764557444889,-150.0,0.00015973,2]
[395231960,1764557444899,-150.0,0.00015974,2]
[395231961,1764557444908,-152.44390529,0.00015974,2]
[395231962,1764557444917,-214.27357495,0.00015974,2]
[395231963,1764557444926,-1452.95,0.00015979,2]
[395231964,1764557444935,-152.44390529,0.00015991,2]
[395231965,1764557444944,-214.27357495,0.00015991,2]
[395231966,1764557444953,-150.0,0.00015998,2]
[395231967,1764557444962,-500.0,0.00015999,2]
[395231968,1764557444972,-500.0,0.00015999,2]
[395231969,1764557444981,-500.0,0.00015999,2]
[395231970,1764557444990,-500.0,0.00015999,2]
[395231971,1764557444999,-178.63833561,0.00015999,2]
[395231972,1764557445009,-531.87508764,0.00015999,2]
[395231973,1764557445018,-500.0,0.00015999,2]
[395231974,1764557445027,-500.0,0.00015999,2]
[395231975,1764557445036,-500.0,0.00015999,2]
[395231976,1764557445046,-500.0,0.00015999,2]
[395231977,1764557445055,-500.0,0.00015999,2]
[395231978,1764557445064,-150.0,0.00016,2]
[395231979,1764557445073,-2000.0,0.00016,2]
[395231980,1764557445083,-150.0,0.00016006,2]
[395231981,1764557445091,-152.44390529,0.00016008,2]
[395231982,1764557445101,-214.27357495,0.00016008,2]
[395231983,1764557445110,-150.0,0.00016016,2]
[395231984,1764557445119,-150.0,0.00016016,2]
[395231985,1764557445128,-150.0,0.00016016,2]
[395231986,1764557445137,-2000.0,0.00016016,2]
[395231987,1764557445147,-3292.0,0.00016024,2]
[395231988,1764557445156,-152.44390529,0.00016025,2]
[395231989,1764557445165,-214.27357495,0.00016025,2]
[395231990,1764557445174,-43306.12467754,0.00016026,2]
[395231991,1764557445183,-151.553399,0.00016026,2]
[395231992,1764557445193,-1916.265192,0.00016026,2]
[395231993,1764557445202,-1916.265192,0.00016026,2]
[395231994,1764557445212,-1916.265192,0.00016026,2]
[395231995,1764557445221,-387.628526,0.00016026,2]
[395231996,1764557445230,-1916.265192,0.00016026,2]
[395231997,1764557445239,-387.628526,0.00016026,2]
[395231998,1764557445248,-387.628526,0.00016026,2]
[395231999,1764557445258,-152.370624,0.00016026,2]
[395232000,1764557445266,-151.0,0.00016026,2]
[395232001,1764557445276,-387.628526,0.00016026,2]
[395232002,1764557445285,-2403.289053,0.00016026,2]
[395232003,1764557445295,-2403.289053,0.00016026,2]
[395232004,1764557445303,-151.0,0.00016026,2]
[395232005,1764557445312,-157.429867,0.00016026,2]
[395232006,1764557445321,-2403.289053,0.00016026,2]
[395232007,1764557445331,-189.67042,0.00016026,2]
[395232008,1764557445340,-2403.289053,0.00016026,2]
[395232009,1764557445349,-151.0,0.00016026,2]
[395232010,1764557445358,-168.391392,0.00016026,2]
[395232011,1764557445367,-151.0,0.00016026,2]
[395232012,1764557445377,-151.000002,0.00016026,2]
[395232013,1764557445386,-151.0,0.00016026,2]
[395232014,1764557445395,-151.0,0.00016026,2]
[395232015,1764557445405,-151.436372,0.00016026,2]
[395232016,1764557445414,-151.0,0.00016026,2]
[395232017,1764557445424,-151.0,0.00016026,2]
[395232018,1764557445433,-151.0,0.00016026,2]
[395232019,1764557445442,-151.0,0.00016026,2]
[395232020,1764557445451,-151.0,0.00016026,2]
[395232021,1764557445460,-151.0,0.00016026,2]
[395232022,1764557445469,-163.89027,0.00016026,2]
[395232023,1764557445478,-163.89027,0.00016026,2]
[395232024,1764557445488,-163.89027,0.00016026,2]
[395232025,1764557445497,-163.89027,0.00016026,2]
[395232026,1764557445507,-151.0,0.00016026,2]
[395232027,1764557445515,-150.0,0.00016027,2]
[395232028,1764557445526,-150.0,0.00016029,2]
[395232029,1764557445537,-150.0,0.00016039,2]
[395232030,1764557445547,-152.44390529,0.00016043,2]
[395232031,1764557445556,-214.27357495,0.00016043,2]
[395232032,1764557445566,-150.0,0.00016043,2]
[395232033,1764557445575,-10636.83273444,0.00016046,2]
[395232034,1764557445585,-484.4802032,0.00016053,2]
[395232035,1764557445594,-150.0,0.00016055,2]
[395232036,1764557445604,-152.44390529,0.0001606,2]
[395232037,1764557445614,-214.27357495,0.0001606,2]
[395232038,1764557445623,-150.0,0.0001606,2]
[395232039,1764557445633,-150.0,0.00016072,2]
[395232040,1764557445642,-150.0,0.00016076,2]
[395232041,1764557445652,-152.44390529,0.00016077,2]
[395232042,1764557445662,-214.27357495,0.00016077,2]
[395232043,1764557445675,-500.0,0.00016079,2]
[395232044,1764557445686,-500.0,0.00016079,2]
[395232045,1764557445695,-500.0,0.00016079,2]
[395232046,1764557445704,-150.0,0.00016082,2]
[395232047,1764557445713,-150.0,0.00016091,2]
[395232049,1764557445722,-152.44390529,0.00016094,2]
[395232051,1764557445732,-214.27357495,0.00016094,2]
[395232053,1764557445742,-150.0,0.00016097,2]
[395232054,1764557445751,-150.0,0.00016104,2]
[395232055,1764557445760,-150.0,0.0001611,2]
[395232056,1764557445769,-152.44390529,0.00016111,2]
[395232058,1764557445779,-214.27357495,0.00016111,2]
[395232060,1764557445788,-277.67,0.00016116,2]
[395232062,1764557445797,-150.0,0.00016122,2]
[395232064,1764557445807,-152.44390529,0.00016128,2]
[395232066,1764557445817,-214.27357495,0.00016128,2]
[395232067,1764557445826,-150.0,0.00016137,2]
[395232068,1764557445835,-150.0,0.00016137,2]
[395232070,1764557445844,-150.0,0.00016137,2]
[395232072,1764557445854,-150.0,0.00016137,2]
[395232073,1764557445863,-150.0,0.00016137,2]
[395232074,1764557445874,-150.0,0.00016137,2]
[395232075,1764557445883,-152.44390529,0.00016146,2]
[395232076,1764557445893,-214.27357495,0.00016146,2]
[395232077,1764557445902,-500.0,0.00016146,2]
[395232078,1764557445912,-500.0,0.00016146,2]
[395232079,1764557445920,-500.0,0.00016146,2]
[395232080,1764557445929,-500.0,0.00016146,2]
[395232081,1764557445937,-500.0,0.00016146,2]
[395232082,1764557445948,-500.0,0.00016146,2]
[395232083,1764557445957,-500.0,0.00016146,2]
[395232084,1764557445966,-500.0,0.00016146,2]
[395232085,1764557445975,-500.0,0.00016146,2]
[395232086,1764557445983,-500.0,0.00016146,2]
[395232087,1764557445992,-500.0,0.00016146,2]
[395232088,1764557446001,-151.0,0.00016148,2]
[395232089,1764557446010,-533.88981491,0.00016148,2]
[395232090,1764557446020,-1000.0,0.00016148,2]
[395232091,1764557446028,-151.0,0.00016148,2]
[395232092,1764557446038,-151.0,0.00016148,2]
[395232093,1764557446046,-1000.0,0.00016148,2]
[395232094,1764557446055,-151.0,0.00016148,2]
[395232095,1764557446064,-1000.0,0.00016148,2]
[395232096,1764557446073,-151.0,0.00016148,2]
[395232097,1764557446082,-1000.0,0.00016148,2]
[395232098,1764557446091,-151.0,0.00016148,2]
[395232099,1764557446100,-151.0,0.00016148,2]
[395232100,1764557446109,-1000.0,0.00016148,2]
[395232101,1764557446118,-151.0,0.00016148,2]
[395232102,1764557446127,-151.0,0.00016148,2]
[395232103,1764557446136,-194.72792766,0.00016148,2]
[395232104,1764557446146,-151.0,0.00016148,2]
[395232105,1764557446156,-151.0,0.00016148,2]
[395232106,1764557446165,-151.0,0.00016148,2]
[395232107,1764557446174,-151.0,0.00016148,2]
[395232108,1764557446184,-151.0,0.00016148,2]
[395232109,1764557446194,-1000.0,0.00016148,2]
[395232110,1764557446203,-151.0,0.00016148,2]
[395232111,1764557446212,-1000.0,0.00016148,2]
[395232112,1764557446221,-151.0,0.00016148,2]
[395232113,1764557446230,-1000.0,0.00016148,2]
[395232114,1764557446239,-1000.0,0.00016148,2]
[395232115,1764557446248,-1000.0,0.00016148,2]
[395232116,1764557446257,-1000.0,0.00016148,2]
[395232117,1764557446266,-1000.0,0.00016148,2]
[395232118,1764557446276,-936.93286639,0.00016148,2]
[395232119,1764557446285,-620.0,0.00016148,2]
[395232120,1764557446294,-1000.0,0.00016148,2]
[395232121,1764557446302,-8000.0,0.00016148,2]
[395232122,1764557446312,-578.20924308,0.00016148,2]
[395232123,1764557446321,-8000.0,0.00016148,2]
[395232124,1764557446330,-8000.0,0.00016148,2]
[395232125,1764557446339,-8000.0,0.00016148,2]
[395232126,1764557446348,-500.0,0.00016148,2]
[395232127,1764557446357,-8000.0,0.00016148,2]
[395232128,1764557446366,-500.0,0.00016148,2]
[395232129,1764557446384,-322.6107,0.00016148,2]
[395232130,1764557446399,-500.0,0.00016148,2]
[395232131,1764557446409,-500.0,0.00016148,2]
[395232133,1764557446417,-500.0,0.00016148,2]
[395232135,1764557446427,-500.0,0.00016148,2]
[395232137,1764557446436,-250.0,0.00016148,2]
[395232139,1764557446445,-500.0,0.00016148,2]
[395232141,1764557446454,-250.0,0.00016148,2]
[395232143,1764557446464,-500.0,0.00016148,2]
[395232144,1764557446473,-250.0,0.00016148,2]
[395232145,1764557446481,-500.0,0.00016148,2]
[395232146,1764557446492,-250.0,0.00016148,2]
[395232147,1764557446501,-500.0,0.00016148,2]
[395232148,1764557446510,-250.0,0.00016148,2]
[395232149,1764557446520,-1000.0,0.00016148,2]
[395232150,1764557446532,-500.0,0.00016148,2]
[395232151,1764557446541,-1000.0,0.00016148,2]
[395232152,1764557446550,-250.0,0.00016148,2]
[395232153,1764557446558,-151.0,0.00016148,2]
[395232154,1764557446568,-500.0,0.00016148,2]
[395232155,1764557446579,-1000.0,0.00016148,2]
[395232156,1764557446589,-151.0,0.00016148,2]
[395232157,1764557446599,-250.0,0.00016148,2]
[395232158,1764557446608,-151.0,0.00016148,2]
[395232159,1764557446617,-250.0,0.00016148,2]
[395232160,1764557446627,-1000.0,0.00016148,2]
[395232161,1764557446636,-151.0,0.00016148,2]
[395232162,1764557446645,-151.0,0.00016148,2]
[395232163,1764557446655,-1000.0,0.00016148,2]
[395232164,1764557446664,-151.0,0.00016148,2]
[395232165,1764557446673,-250.0,0.00016148,2]
[395232166,1764557446683,-1000.0,0.00016148,2]
[395232167,1764557446693,-250.0,0.00016148,2]
[395232168,1764557446702,-151.0,0.00016148,2]
[395232169,1764557446712,-1000.0,0.00016148,2]
[395232170,1764557446721,-8000.0,0.00016148,2]
[395232171,1764557446730,-250.0,0.00016148,2]
[395232172,1764557446739,-151.0,0.00016148,2]
[395232173,1764557446749,-500.0,0.00016148,2]
[395232174,1764557446758,-1000.0,0.00016148,2]
[395232175,1764557446767,-8000.0,0.00016148,2]
[395232176,1764557446777,-151.0,0.00016148,2]
[395232177,1764557446785,-250.0,0.00016148,2]
[395232178,1764557446794,-1000.0,0.00016148,2]
[395232179,1764557446803,-8000.0,0.00016148,2]
[395232180,1764557446812,-151.0,0.00016148,2]
[395232181,1764557446822,-250.0,0.00016148,2]
[395232182,1764557446831,-1000.0,0.00016148,2]
[395232183,1764557446841,-300.0,0.00016148,2]
[395232184,1764557446850,-151.0,0.00016148,2]
[395232185,1764557446859,-8000.0,0.00016148,2]
[395232186,1764557446867,-1000.0,0.00016148,2]
[395232187,1764557446877,-151.0,0.00016148,2]
[395232188,1764557446886,-8000.0,0.00016148,2]
[395232189,1764557446895,-1000.0,0.00016148,2]
[395232190,1764557446905,-3000.0,0.00016148,2]
[395232191,1764557446915,-151.0,0.00016148,2]
[395232192,1764557446924,-8000.0,0.00016148,2]
[395232193,1764557446933,-1000.0,0.00016148,2]
[395232194,1764557446942,-151.0,0.00016148,2]
[395232195,1764557446951,-8000.0,0.00016148,2]
[395232196,1764557446960,-6003.54480208,0.00016148,2]
[395232197,1764557446970,-194.72792766,0.00016148,2]
[395232198,1764557446981,-250.0,0.00016148,2]
[395232199,1764557446992,-250.0,0.00016148,2]
[395232200,1764557447001,-250.0,0.00016148,2]
[395232201,1764557447010,-250.0,0.00016148,2]
[395232202,1764557447021,-500.0,0.00016148,2]
[395232203,1764557447030,-250.0,0.00016148,2]
[395232204,1764557447039,-500.0,0.00016148,2]
[395232205,1764557447048,-250.0,0.00016148,2]
[395232206,1764557447057,-500.0,0.00016148,2]
[395232207,1764557447065,-250.0,0.00016148,2]
[395232208,1764557447074,-500.0,0.00016148,2]
[395232209,1764557447083,-250.0,0.00016148,2]
[395232210,1764557447092,-500.0,0.00016148,2]
[395232211,1764557447100,-250.0,0.00016148,2]
[395232212,1764557447109,-500.0,0.00016148,2]
[395232213,1764557447119,-250.0,0.00016148,2]
[395232214,1764557447128,-250.0,0.00016148,2]
[395232215,1764557447137,-500.0,0.00016148,2]
[395232216,1764557447146,-250.0,0.00016148,2]
[395232217,1764557447155,-250.0,0.00016148,2]
[395232218,1764557447164,-500.0,0.00016148,2]
[395232219,1764557447173,-250.0,0.00016148,2]
[395232220,1764557447182,-500.0,0.00016148,2]
[395232221,1764557447191,-250.0,0.00016148,2]
[395232222,1764557447200,-500.0,0.00016148,2]
[395232223,1764557447209,-257.91778498,0.00016148,2]
[395232224,1764557447218,-250.0,0.00016148,2]
[395232225,1764557447227,-500.0,0.00016148,2]
[395232226,1764557447236,-250.0,0.00016148,2]
[395232227,1764557447246,-500.0,0.00016148,2]
[395232228,1764557447255,-250.0,0.00016148,2]
[395232229,1764557447264,-500.0,0.00016148,2]
[395232230,1764557447273,-500.0,0.00016148,2]
[395232231,1764557447281,-250.0,0.00016148,2]
[395232232,1764557447290,-250.0,0.00016148,2]
[395232233,1764557447299,-500.0,0.00016148,2]
[395232234,1764557447308,-250.0,0.00016148,2]
[395232235,1764557447317,-250.0,0.00016148,2]
[395232236,1764557447326,-250.0,0.00016148,2]
[395232237,1764557447335,-250.0,0.00016148,2]
[395232238,1764557447344,-250.0,0.00016148,2]
[395232239,1764557447354,-250.0,0.00016148,2]
[395232240,1764557447363,-500.0,0.00016148,2]
[395232241,1764557447371,-250.39585961,0.00016148,2]
[395232242,1764557447381,-226.43577512,0.0001615,2]
[395232243,1764557447389,-2092.314224,0.0001615,2]
[395232244,1764557447400,-150.0,0.00016152,2]
[395232245,1764557447409,-152.44390529,0.00016163,2]
[395232246,1764557447419,-214.27357495,0.00016163,2]
[395232247,1764557447430,-150.0,0.00016164,2]
[395232248,1764557447439,-151.0,0.00016165,2]
[395232249,1764557447449,-150.0,0.0001617,2]
[395232250,1764557447458,-150.0,0.00016177,2]
[395232251,1764557447467,-152.44390529,0.0001618,2]
[395232252,1764557447477,-214.27357495,0.0001618,2]
[395232253,1764557447486,-150.0,0.00016183,2]
[395232254,1764557447496,-150.0,0.00016192,2]
[395232255,1764557447505,-152.44390529,0.00016197,2]
[395232256,1764557447514,-214.27357495,0.00016197,2]
[395232257,1764557447522,-150.0,0.00016198,2]
[395232258,1764557447536,-150.0,0.00016202,2]